bitfinex/quotes_SOLUSD_20250123
["timestamp","ask_amount","ask_price","bid_price","bid_amount"]
[1737595142500,220.9,255.71,255.69,11.91123969]
[1737595143310,224.8107,255.71,255.69,11.91123969]
[1737595146899,220.9,255.71,255.69,11.91123969]
[1737595147107,83.1,255.7,255.69,11.91123969]
[1737595151232,220.9,255.69,255.67,11.91123969]
[1737595152224,220.9,255.68,255.63,11.91123969]
[1737595152428,244.676884,255.67,255.62,0.063]
[1737595152803,3.9114,255.66,255.62,0.063]
[1737595153217,220.9,255.65,255.62,0.063]
[1737595154232,220.9,255.63,255.62,0.063]
[1737595155124,220.9,255.63,255.62,11.97423969]
[1737595155507,19.5494,255.77,255.62,11.97423969]
[1737595155508,149.71123969,255.74,255.65,20.0]
[1737595155710,137.8,255.73,255.72,11.91123969]
[1737595157040,137.8,255.73,255.72,323.91123969]
[1737595158240,220.9,255.76,255.72,323.91123969]
[1737595158413,83.1,255.76,255.74,11.91123969]
[1737595161335,83.1,255.76,255.74,323.91123969]
[1737595165639,83.1,255.76,255.74,11.91123969]
[1737595168537,87.0099,255.76,255.74,11.91123969]
[1737595168716,83.1,255.76,255.74,323.91123969]
[1737595170532,87.0099,255.76,255.74,11.91123969]
[1737595170935,3.9099,255.76,255.72,11.91123969]
[1737595171132,3.9099,255.76,255.74,11.91123969]
[1737595171733,23.806884,255.79,255.74,11.91123969]
[1737595172241,0.03,255.79,255.74,11.91123969]
[1737595173445,0.03,255.79,255.74,323.91123969]
[1737595174648,0.03,255.79,255.74,11.91123969]
[1737595177729,0.03,255.79,255.74,323.91123969]
[1737595180926,0.03,255.79,255.74,11.91123969]
[1737595183943,0.03,255.79,255.74,323.91123969]
[1737595184851,0.03,255.79,255.74,11.91123969]
[1737595185651,220.9,255.78,255.74,11.91123969]
[1737595187964,3.9097,255.77,255.74,11.91123969]
[1737595189868,137.8,255.76,255.74,7.62894891]
[1737595190066,141.7099,255.76,255.74,7.62894891]
[1737595194568,3.9099,255.76,255.74,7.62894891]
[1737595195763,0.03,255.79,255.74,7.62894891]
[1737595210774,0.03,255.79,255.74,11.53914891]
[1737595210967,0.03,255.79,255.74,12.12550043]
[1737595211983,0.03,255.79,255.74,324.12550043]
[1737595212177,0.03,255.79,255.74,319.62894891]
[1737595212487,0.03,255.79,255.74,7.62894891]
[1737595214576,0.03,255.79,255.74,8.21528225]
[1737595215379,0.03,255.79,255.74,320.21528225]
[1737595215591,0.03,255.79,255.74,319.62894891]
[1737595216086,0.03,255.79,255.78,20.0]
[1737595216271,0.03,255.79,255.78,27.62894891]
[1737595217297,0.03,255.79,255.78,31.53854891]
[1737595219199,0.03,255.79,255.78,343.53854891]
[1737595223292,0.03,255.79,255.78,339.62894891]
[1737595223602,0.03,255.79,255.78,27.62894891]
[1737595223986,0.03,255.79,255.78,7.62894891]
[1737595224999,137.8,255.77,255.74,7.62894891]
[1737595225184,0.03,255.79,255.76,7.62894891]
[1737595225385,0.03,255.79,255.78,7.62894891]
[1737595226201,0.03,255.79,255.76,7.62894891]
[1737595226394,3.9394,255.79,255.76,7.62894891]
[1737595226602,137.8,255.78,255.74,7.62894891]
[1737595227399,0.03,255.79,255.68,1.5499]
[1737595227583,0.03,255.79,255.78,7.62894891]
[1737595227788,0.03,255.79,255.78,12.23735375]
[1737595228804,0.03,255.79,255.78,7.62894891]
[1737595229610,0.03,255.79,255.78,319.62894891]
[1737595229802,0.03,255.79,255.78,7.62894891]
[1737595230104,0.03,255.79,255.76,7.62894891]
[1737595230601,0.03,255.78,255.76,7.62894891]
[1737595231816,0.03,255.78,255.76,16.73351882]
[1737595232186,0.03,255.78,255.76,16.14715375]
[1737595232488,0.03,255.78,255.76,12.23735375]
[1737595232690,0.03,255.78,255.76,324.23735375]
[1737595233705,83.1,255.77,255.76,7.62894891]
[1737595233885,83.1,255.77,255.74,7.69194891]
[1737595234581,0.03,255.78,255.77,31.276884]
[1737595234910,0.03,255.87,255.84,20.0]
[1737595235103,0.03,255.87,255.86,7.62894891]
[1737595236202,0.03,255.87,255.86,11.53724891]
[1737595236588,0.03,255.87,255.86,323.53724891]
[1737595237400,0.03,255.87,255.86,319.62894891]
[1737595240513,83.13,255.87,255.86,7.62894891]
[1737595243513,83.13,255.87,255.86,319.62894891]
[1737595244791,0.03,255.87,255.86,319.62894891]
[1737595248315,0.03,255.87,255.86,7.62894891]
[1737595251212,0.03,255.87,255.86,319.62894891]
[1737595253222,0.03,255.87,255.86,7.62894891]
[1737595256214,0.03,255.87,255.86,319.62894891]
[1737595257221,0.03,255.87,255.86,7.62894891]
[1737595258517,220.9,255.91,255.87,3.9082]
[1737595259921,83.1,255.91,255.87,3.9082]
[1737595260118,83.1,255.91,255.87,315.9082]
[1737595262924,83.1,255.91,255.9,7.62894891]
[1737595264823,137.8,255.93,255.92,20.0]
[1737595265004,137.8,255.93,255.92,27.62894891]
[1737595266610,137.8,255.93,255.92,339.62894891]
[1737595267811,137.83,255.93,255.92,339.62894891]
[1737595268830,0.03,255.93,255.92,339.62894891]
[1737595270630,0.03,255.93,255.92,7.62894891]
[1737595273531,0.03,255.93,255.92,319.62894891]
[1737595278023,0.03,255.93,255.92,7.62894891]
[1737595279133,0.03,255.93,255.88,7.62894891]
[1737595279836,0.03,255.93,255.92,7.62894891]
[1737595280036,0.03,255.93,255.9,7.62894891]
[1737595280733,220.9,255.92,255.9,7.62894891]
[1737595284354,220.9,255.92,255.87,312.063]
[1737595284355,83.1,255.91,255.87,312.063]
[1737595284522,83.1,255.91,255.87,0.063]
[1737595285142,220.9,255.9,255.87,0.063]
[1737595286539,224.8079,255.89,255.87,0.063]
[1737595289037,220.9,255.89,255.87,0.063]
[1737595289637,83.1,255.88,255.87,0.063]
[1737595290432,114.50583291,255.88,255.87,0.063]
[1737595290750,83.1,255.88,255.87,0.063]
[1737595291850,106.876884,255.88,255.87,0.063]
[1737595292753,114.50583291,255.88,255.87,0.063]
[1737595292944,83.1,255.88,255.87,0.063]
[1737595293263,83.1,255.88,255.87,7.69194891]
[1737595295935,83.1,255.88,255.87,319.69194891]
[1737595299541,83.1,255.88,255.87,0.063]
[1737595300661,83.1,255.88,255.87,7.69194891]
[1737595302343,83.1,255.88,255.87,0.063]
[1737595302558,83.13,255.88,255.87,0.063]
[1737595305747,83.13,255.88,255.87,7.69194891]
[1737595307763,83.13,255.88,255.87,11.60014891]
[1737595308653,83.13,255.88,255.87,323.60014891]
[1737595309152,83.13,255.88,255.87,319.69194891]
[1737595310467,0.03,255.88,255.87,319.69194891]
[1737595311567,0.03,255.88,255.87,7.69194891]
[1737595313871,0.03,255.88,255.87,15.19194891]
[1737595314062,0.03,255.93,255.9,20.0]
[1737595314263,0.03,255.93,255.92,7.62894891]
[1737595314658,0.03,255.93,255.92,319.62894891]
[1737595316975,0.03,255.93,255.92,323.53634891]
[1737595320973,0.03,255.93,255.92,7.62894891]
[1737595324376,0.03,255.93,255.87,5.5476]
[1737595324377,224.8074,255.92,255.87,0.063]
[1737595325370,220.9,255.91,255.87,0.063]
[1737595326774,256.21353291,255.9,255.87,0.063]
[1737595329176,220.9,255.9,255.87,0.063]
[1737595331182,220.9,255.89,255.87,0.063]
[1737595332482,224.808,255.89,255.87,0.063]
[1737595333588,7.62894891,255.88,255.87,0.063]
[1737595334673,31.40583291,255.88,255.87,0.063]
[1737595335682,39.03478191,255.88,255.87,0.063]
[1737595336068,31.40583291,255.88,255.87,0.063]
[1737595338492,7.62894891,255.88,255.87,0.063]
[1737595338783,19.539151,255.89,255.87,0.063]
[1737595338784,3.908,255.89,255.87,0.063]
[1737595339491,0.03,255.88,255.87,0.063]
[1737595341285,2.9376,255.91,255.87,0.063]
[1737595341895,23.806884,255.93,255.87,0.063]
[1737595342076,27.714184,255.93,255.87,0.063]
[1737595343094,3.9076,255.91,255.87,0.063]
[1737595343676,3.9374,255.93,255.87,0.063]
[1737595344287,137.8,255.9,255.87,0.063]
[1737595345291,141.7079,255.9,255.87,0.063]
[1737595346306,137.8,255.9,255.87,0.063]
[1737595346780,137.8,255.9,255.88,7.62894891]
[1737595347205,137.8,255.9,255.88,319.62894891]
[1737595347592,0.03,255.93,255.91,20.0]
[1737595347776,0.03,255.93,255.91,27.62894891]
[1737595348894,0.03,255.93,255.91,7.62894891]
[1737595349202,0.03,255.93,255.87,7.69194891]
[1737595350602,0.03,255.93,255.87,319.69194891]
[1737595352017,3.9076,255.91,255.87,319.69194891]
[1737595352688,3.9076,255.91,255.87,7.69194891]
[1737595352903,137.8,255.9,255.87,0.063]
[1737595353210,220.9,255.9,255.87,0.063]
[1737595354101,224.8079,255.89,255.87,0.063]
[1737595354798,232.43684891,255.89,255.87,0.063]
[1737595355816,236.72352727,255.89,255.87,0.063]
[1737595356707,220.9,255.88,255.87,0.063]
[1737595356881,244.676884,255.88,255.87,0.063]
[1737595357709,244.676884,255.88,255.79,0.063]
[1737595357710,25.352684,255.87,255.79,0.063]
[1737595357890,220.9,255.81,255.79,0.063]
[1737595358904,3.9093,255.8,255.79,0.063]
[1737595360890,23.776884,255.83,255.79,0.063]
[1737595361084,27.685684,255.83,255.79,0.063]
[1737595361695,137.8,255.82,255.79,0.063]
[1737595361895,23.776884,255.75,255.62,0.063]
[1737595362184,11.91562727,255.69,255.62,0.063]
[1737595363003,11.91562727,255.67,255.62,0.063]
[1737595363208,3.9114,255.66,255.62,0.063]
[1737595363707,35.69251127,255.63,255.62,0.063]
[1737595365185,25.0,255.58,255.54,0.063]
[1737595365398,35.69251127,255.55,255.54,0.063]
[1737595366814,39.60561127,255.55,255.54,0.063]
[1737595367885,11.91562727,255.55,255.54,0.063]
[1737595368787,11.91562727,255.59,255.54,0.063]
[1737595369211,11.91562727,255.57,255.54,0.063]
[1737595372915,220.9,255.55,255.54,0.063]
[1737595374624,137.8,255.56,255.54,0.063]
[1737595378816,137.8,255.56,255.54,15.89172727]
[1737595379014,137.8,255.59,255.54,15.89172727]
[1737595380441,220.9,255.6,255.58,11.91562727]
[1737595380727,220.9,255.6,255.59,3.90135355]
[1737595381831,220.9,255.6,255.58,11.91562727]
[1737595382510,220.9,255.6,255.59,3.9125]
[1737595383832,220.9,255.6,255.58,11.91562727]
[1737595384126,220.9,255.6,255.56,11.91562727]
[1737595384318,220.9,255.6,255.54,0.063]
[1737595384319,220.9,255.6,255.58,11.91562727]
[1737595384521,220.9,255.6,255.58,15.82822727]
[1737595384743,0.03,255.61,255.58,15.82822727]
[1737595384921,0.03,255.61,255.6,11.91562727]
[1737595386330,0.03,255.61,255.58,11.91562727]
[1737595386535,220.9,255.6,255.56,11.91562727]
[1737595386921,220.9,255.6,255.54,0.063]
[1737595386922,35.69251127,255.57,255.54,0.063]
[1737595387723,3.9129,255.56,255.54,0.063]
[1737595388108,35.69251127,255.55,255.54,0.063]
[1737595389628,43.19251127,255.55,255.54,0.063]
[1737595390029,48.19251127,255.55,255.54,0.063]
[1737595390230,40.69251127,255.55,255.54,0.0001]
[1737595390438,27.690084,255.54,255.53,0.0001]
[1737595392112,9.0309,255.49,255.44,0.063]
[1737595392316,9.0309,255.49,255.32,0.063]
[1737595392317,20.0,255.42,255.32,0.063]
[1737595392534,5.0,255.44,255.32,0.063]
[1737595392535,11.91562727,255.4,255.32,0.063]
[1737595392932,23.776884,255.39,255.32,0.063]
[1737595393224,23.776884,255.37,255.32,0.063]
[1737595394150,27.692684,255.37,255.32,0.063]
[1737595394316,35.192684,255.37,255.32,0.063]
[1737595394713,27.692684,255.37,255.32,0.063]
[1737595395323,35.192684,255.37,255.32,0.063]
[1737595396241,27.692684,255.37,255.32,0.063]
[1737595397726,3.9158,255.37,255.32,0.063]
[1737595398240,3.9152,255.41,255.32,11.97862727]
[1737595398449,11.91562727,255.4,255.32,0.063]
[1737595398634,11.91562727,255.38,255.32,0.063]
[1737595399760,3.9158,255.37,255.32,0.063]
[1737595401134,23.776884,255.4,255.32,0.063]
[1737595401135,3.9155,255.39,255.32,0.063]
[1737595401336,3.9155,255.39,255.32,11.97862727]
[1737595402628,137.8,255.38,255.32,11.97862727]
[1737595402827,141.7157,255.38,255.32,11.97862727]
[1737595403339,153.63132727,255.38,255.32,0.063]
[1737595408442,137.8,255.37,255.32,0.063]
[1737595414341,15.83132727,255.38,255.32,0.063]
[1737595415253,3.9157,255.38,255.32,0.063]
[1737595417751,11.91562727,255.4,255.32,0.063]
[1737595417940,3.9155,255.39,255.32,0.063]
[1737595420353,137.8,255.38,255.32,0.063]
[1737595420535,3.9158,255.37,255.32,0.063]
[1737595421753,11.91562727,255.4,255.32,0.063]
[1737595422054,137.8,255.38,255.37,11.91562727]
[1737595422266,137.8,255.38,255.35,11.91562727]
[1737595422454,137.8,255.37,255.33,11.91562727]
[1737595422645,137.8,255.37,255.32,0.063]
[1737595423458,137.8,255.37,255.33,11.91562727]
[1737595424742,137.8,255.37,255.35,11.91562727]
[1737595424937,83.1,255.42,255.36,3.979]
[1737595425137,0.063,255.44,255.4,11.91562727]
[1737595425338,137.863,255.44,255.42,11.91562727]
[1737595426038,0.063,255.44,255.42,11.91562727]
[1737595426553,0.063,255.44,255.42,323.91562727]
[1737595426860,0.063,255.44,255.42,327.83052727]
[1737595429656,0.063,255.44,255.43,5.0]
[1737595429845,0.063,255.44,255.43,16.91562727]
[1737595430361,0.063,255.44,255.43,24.41562727]
[1737595430569,137.8,255.55,255.46,20.0]
[1737595430746,87.0129,255.57,255.54,11.91562727]
[1737595430944,83.1,255.57,255.54,11.91562727]
[1737595431539,83.1,255.57,255.56,11.91562727]
[1737595431875,137.8,255.58,255.56,11.91562727]
[1737595432344,137.8,255.6,255.56,11.91562727]
[1737595432545,137.8,255.6,255.58,11.91562727]
[1737595433351,0.03,255.61,255.58,11.91562727]
[1737595433562,0.03,255.61,255.6,11.91562727]
[1737595437283,0.03,255.61,255.54,4.08]
[1737595437284,0.03,255.61,255.58,11.91562727]
[1737595438265,0.03,255.61,255.45,12.50249572]
[1737595438266,137.8,255.56,255.49,11.91562727]
[1737595438479,137.8,255.54,255.49,11.91562727]
[1737595439255,137.8,255.53,255.47,11.91562727]
[1737595439854,137.8,255.52,255.47,11.91562727]
[1737595440054,220.9,255.51,255.45,11.91562727]
[1737595440257,3.9138,255.5,255.45,11.91562727]
[1737595441172,3.9138,255.5,255.43,11.91562727]
[1737595441376,3.9138,255.5,255.41,11.91562727]
[1737595441671,220.9,255.47,255.41,11.91562727]
[1737595441858,220.9,255.47,255.39,4.08]
[1737595441859,83.1,255.46,255.39,11.91562727]
[1737595442386,3.9146,255.45,255.39,11.91562727]
[1737595443273,137.8,255.43,255.37,11.91562727]
[1737595444461,141.7149,255.43,255.37,11.91562727]
[1737595446657,141.7149,255.43,255.42,11.94562727]
[1737595446658,137.8,255.43,255.42,11.94562727]
[1737595447094,137.8,255.48,255.42,11.94562727]
[1737595447259,137.8,255.48,255.46,11.91562727]
[1737595447461,137.8,255.49,255.46,11.91562727]
[1737595447761,137.8,255.49,255.42,0.03]
[1737595447762,137.8,255.49,255.48,11.91562727]
[1737595448070,0.063,255.5,255.48,11.91562727]
[1737595453889,0.063,255.5,255.48,15.82972727]
[1737595455487,0.063,255.5,255.48,11.91562727]
[1737595458182,3.9769,255.5,255.48,11.91562727]
[1737595458594,137.8,255.49,255.48,11.91562727]
[1737595458891,137.8,255.49,255.46,11.91562727]
[1737595459895,3.9142,255.48,255.46,11.91562727]
[1737595461879,141.7142,255.48,255.46,11.91562727]
[1737595464694,137.8,255.48,255.46,11.91562727]
[1737595467000,137.8,255.48,255.46,15.83002727]
[1737595467487,0.063,255.5,255.49,20.0]
[1737595467690,0.063,255.5,255.48,31.91562727]
[1737595470882,0.063,255.5,255.48,11.91562727]
[1737595471088,137.8,255.49,255.48,11.91562727]
[1737595475303,137.8,255.49,255.46,11.91562727]
[1737595475505,141.714,255.49,255.46,11.91562727]
[1737595479192,7.5,255.6,255.46,11.91562727]
[1737595479193,0.03,255.61,255.55,20.0]
[1737595479395,0.03,255.61,255.6,11.91562727]
[1737595495798,0.03,255.61,255.6,27.63352684]
[1737595504629,83.1,255.66,255.6,27.63352684]
[1737595504830,141.7113,255.67,255.65,7.63352684]
[1737595509329,137.8,255.62,255.57,7.63352684]
[1737595509540,137.8,255.61,255.59,7.63352684]
[1737595510513,3.9123,255.6,255.59,7.63352684]
[1737595513132,137.8,255.72,255.62,27.5]
[1737595513435,137.8,255.77,255.69,38.1676342]
[1737595513740,137.8,255.77,255.74,7.63352684]
[1737595515148,141.7098,255.77,255.74,7.63352684]
[1737595516133,137.8,255.77,255.74,7.63352684]
[1737595517932,3.9729,255.76,255.74,7.63352684]
[1737595519821,3.9729,255.76,255.72,7.63352684]
[1737595519822,0.063,255.76,255.72,7.63352684]
[1737595520038,3.9102,255.74,255.72,7.63352684]
[1737595520828,220.9,255.73,255.72,7.63352684]
[1737595524419,83.1,255.73,255.72,7.63352684]
[1737595525143,83.1,255.73,255.71,7.63352684]
[1737595525537,87.0104,255.73,255.71,7.63352684]
[1737595525733,83.1,255.73,255.71,7.63352684]
[1737595528638,0.063,255.75,255.74,20.0]
[1737595528843,83.1,255.79,255.74,27.63352684]
[1737595529037,83.1,255.79,255.78,7.63352684]
[1737595529233,83.1,255.84,255.81,20.0]
[1737595529438,83.1,255.84,255.83,7.63352684]
[1737595529747,83.1,255.84,255.83,11.91204252]
[1737595533219,137.8,255.85,255.83,11.91204252]
[1737595535345,3.9086,255.84,255.83,11.91204252]
[1737595535648,137.8,255.85,255.83,11.91204252]
[1737595538637,3.9086,255.84,255.83,11.91204252]
[1737595538841,141.7086,255.85,255.83,11.91204252]
[1737595539147,137.8,255.84,255.83,11.91204252]
[1737595550940,137.8,255.84,255.83,23.82408504]
[1737595551255,0.063,255.85,255.83,11.91204252]
[1737595551444,0.063,255.85,255.84,11.91204252]
[1737595551635,0.063,255.85,255.84,38.096576]
[1737595552140,83.1,255.9,255.84,38.096576]
[1737595552443,83.1,255.9,255.89,7.6193152]
[1737595553557,0.03,255.93,255.89,46.5271152]
[1737595553735,0.03,255.93,255.92,7.6193152]
[1737595554544,0.03,255.93,255.92,37.6193152]
[1737595560245,0.03,255.93,255.92,38.20525481]
[1737595562146,0.03,255.93,255.92,350.20525481]
[1737595562344,0.03,255.93,255.92,37.6193152]
[1737595566556,0.03,255.93,255.92,30.0]
[1737595566755,0.03,255.93,255.9,7.6193152]
[1737595568467,137.8,255.92,255.88,7.6193152]
[1737595568650,137.8,255.92,255.89,30.0]
[1737595568651,106.876884,255.9,255.89,30.0]
[1737595568851,23.776884,255.9,255.89,30.0]
[1737595569348,7.6193152,255.92,255.84,7.6193152]
[1737595569559,3.9077,255.9,255.85,30.0]
[1737595569970,23.776884,255.87,255.85,30.0]
[1737595570144,83.1,255.88,255.83,4.04]
[1737595570145,83.1,255.88,255.83,7.6193152]
[1737595570346,83.1,255.88,255.87,7.6193152]
[1737595571970,0.03,255.94,255.87,7.6193152]
[1737595572271,0.03,255.94,255.91,7.6193152]
[1737595572467,3.9373,255.93,255.89,7.6193152]
[1737595572976,137.8,255.91,255.89,7.6193152]
[1737595577652,0.03,255.93,255.9,30.0]
[1737595577849,0.03,255.93,255.92,7.6193152]
[1737595579052,0.03,255.93,255.92,37.6193152]
[1737595580355,0.03,255.93,255.92,42.6193152]
[1737595580557,0.03,255.94,255.92,354.6193152]
[1737595580760,0.03,255.94,255.93,0.58590746]
[1737595580961,0.03,255.94,255.93,30.58590746]
[1737595581470,0.03,255.96,255.95,29.1525]
[1737595581652,0.03,255.96,255.95,71.87489208]
[1737595581856,0.03,256.01,255.98,5.0]
[1737595582159,0.03,256.01,256.0,7.6193152]
[1737595585279,0.03,256.01,256.0,37.6193152]
[1737595590166,0.03,256.01,256.0,30.0]
[1737595590869,0.03,256.01,255.97,30.0]
[1737595591980,23.776884,256.0,255.97,30.0]
[1737595592378,137.8,255.98,255.97,30.0]
[1737595592584,161.576884,255.97,255.89,11.6593152]
[1737595592759,161.576884,255.97,255.91,30.0]
[1737595593287,161.576884,255.97,255.91,37.6193152]
[1737595594088,3.9068,255.96,255.91,37.6193152]
[1737595594289,3.9068,255.96,255.91,7.6193152]
[1737595595577,220.9,255.95,255.91,7.6193152]
[1737595597574,220.9,255.95,255.93,7.6193152]
[1737595601594,83.1,255.95,255.93,7.6193152]
[1737595607402,83.1,255.95,255.94,30.0]
[1737595607602,220.9,256.0,255.94,30.0]
[1737595607793,83.1,256.0,255.99,7.6193152]
[1737595609502,83.1,256.0,255.99,37.6193152]
[1737595610903,83.1,256.0,255.99,30.0]
[1737595612415,83.1,256.0,255.96,30.0]
[1737595613486,83.1,256.0,255.95,7.6193152]
[1737595614619,0.03,256.01,255.97,7.6193152]
[1737595615807,0.03,256.01,255.99,7.6193152]
[1737595616304,0.03,256.01,255.99,17.11128759]
[1737595616497,0.03,256.01,255.99,24.61128759]
[1737595616703,0.03,256.01,256.0,30.0]
[1737595617609,0.03,256.01,256.0,60.0]
[1737595618603,0.03,256.01,256.0,372.0]
[1737595618804,0.03,256.01,256.0,395.776884]
[1737595618988,0.03,256.05,256.04,27.6193152]
[1737595619185,0.03,256.05,256.04,58.20491841]
[1737595620088,0.03,256.05,256.04,100.70491841]
[1737595620293,0.03,256.05,256.04,65.70491841]
[1737595620611,0.03,256.05,256.04,100.70491841]
[1737595621208,0.03,256.05,256.04,104.61051841]
[1737595622011,0.03,256.05,256.04,97.11051841]
[1737595622194,0.03,256.05,256.04,416.61051841]
[1737595622394,0.03,256.12,256.07,35.0]
[1737595622713,0.03,256.12,256.07,76.6593152]
[1737595623712,0.03,256.12,256.07,41.6593152]
[1737595624493,0.03,256.12,256.07,42.24491689]
[1737595624912,0.03,256.12,256.07,41.6593152]
[1737595626407,137.8,256.11,256.07,41.6593152]
[1737595626608,137.8,256.11,256.07,37.6193152]
[1737595626802,137.8,256.11,256.07,41.6593152]
[1737595627318,137.8,256.11,256.07,11.6593152]
[1737595627998,137.8,256.11,256.07,41.6593152]
[1737595629721,141.7046,256.11,256.07,41.6593152]
[1737595629907,137.8,256.11,256.07,41.6593152]
[1737595630222,137.8,256.11,256.07,11.6593152]
[1737595631525,137.8,256.11,256.07,41.6593152]
[1737595631908,137.8,256.11,256.07,11.6593152]
[1737595633197,141.7045,256.11,256.05,7.6193152]
[1737595633403,141.7045,256.11,256.06,4.04]
[1737595633614,141.7045,256.11,256.07,7.6193152]
[1737595633615,137.8,256.11,256.07,7.6193152]
[1737595634121,137.8,256.11,256.07,8.20496261]
[1737595634304,137.8,256.11,256.07,320.20496261]
[1737595634503,137.8,256.11,256.07,319.6193152]
[1737595634823,137.8,256.11,256.07,349.6193152]
[1737595635026,137.8,256.11,256.07,37.6193152]
[1737595635207,137.8,256.11,256.07,41.5244152]
[1737595637025,0.03,256.12,256.07,41.5244152]
[1737595638006,0.03,256.12,256.07,353.5244152]
[1737595638830,0.03,256.12,256.09,42.5]
[1737595639012,0.03,256.12,256.11,12.5]
[1737595639325,0.03,256.12,256.11,20.70473295]
[1737595641410,0.03,256.12,256.11,24.60923295]
[1737595641911,0.03,256.12,256.11,336.60923295]
[1737595642105,0.03,256.12,256.11,336.0238152]
[1737595642632,0.03,256.12,256.11,364.19306138]
[1737595642927,0.03,256.19,256.13,66.276884]
[1737595643130,0.03,256.19,256.18,35.0]
[1737595643427,0.03,256.19,256.18,42.6193152]
[1737595644830,0.03,256.19,256.18,11.5228152]
[1737595645010,0.03,256.19,256.18,15.5428152]
[1737595645728,0.03,256.19,256.18,19.79677564]
[1737595645921,0.03,256.19,256.18,24.79677564]
[1737595646235,0.03,256.19,256.18,331.79677564]
[1737595646735,0.03,256.19,256.18,24.79677564]
[1737595647230,0.03,256.19,256.18,19.79677564]
[1737595647446,0.03,256.19,256.18,54.79677564]
[1737595649538,0.03,256.19,256.18,366.79677564]
[1737595650438,0.03,256.19,256.18,368.3284323]
[1737595650635,0.063,256.34,256.29,20.0]
[1737595650843,0.063,256.34,256.32,11.87327564]
[1737595651736,0.063,256.34,256.33,20.0]
[1737595652031,0.063,256.34,256.26,11.87327564]
[1737595652746,0.063,256.34,256.29,20.0]
[1737595653252,0.063,256.34,256.28,11.87327564]
[1737595653253,0.063,256.34,256.31,20.0]
[1737595653728,11.87327564,256.33,256.31,20.0]
[1737595653924,0.063,256.34,256.29,24.02]
[1737595654442,11.87327564,256.33,256.29,4.02]
[1737595654626,137.863,256.34,256.29,4.02]
[1737595655130,137.863,256.34,256.29,24.02]
[1737595655331,137.863,256.34,256.31,20.0]
[1737595655721,137.863,256.34,256.33,20.0]
[1737595656137,137.863,256.34,256.31,20.0]
[1737595656527,137.863,256.34,256.33,20.0]
[1737595658032,0.063,256.34,256.33,20.0]
[1737595658426,0.063,256.34,256.32,323.87327564]
[1737595658831,0.063,256.34,256.33,3.9012]
[1737595659330,0.063,256.34,256.28,4.02]
[1737595659730,0.063,256.34,256.28,24.02]
[1737595660143,0.063,256.34,256.3,20.0]
[1737595660535,0.063,256.34,256.28,24.02]
[1737595661337,0.063,256.34,256.22,0.03]
[1737595661338,137.8,256.31,256.23,11.87327564]
[1737595661540,137.8,256.31,256.22,0.03]
[1737595661541,137.8,256.29,256.24,4.02]
[1737595662459,153.57507564,256.29,256.24,24.02]
[1737595663958,27.678884,256.28,256.24,4.02]
[1737595664251,27.678884,256.28,256.22,0.03]
[1737595664252,137.8,256.26,256.22,0.03]
[1737595665429,149.67327564,256.25,256.22,0.03]
[1737595666040,137.863,256.34,256.27,20.0]